{"text_format":"1","workbook":"xlsx","n_sheets":2,"sheets":["DATOS","Simulación"],"not_rendered":{"charts":0,"images":1,"macros":1,"external_links":0,"defined_names":10,"comments":0,"pivot_tables":0},"unopened":[],"bounds":{"document_bytes":16777216,"sheet_cells":100000,"rows_first":2000,"rows_last":500,"rows_between":2000,"halvings":0,"cell_chars":16384,"cell_head_chars":4096},"cells_cut":0,"cells_raw":0,"read":"whole","date_system":"1900"}

{"sheet":"DATOS","index":0,"n_rows":90,"n_cols":8,"rows_kept":90,"cut":false,"hidden":true,"merged":[]}
[null,"Parámetros Iniciales"]
[]
[null,"ETAPA",null,null,"PREGRADO_INGRESANTE","PREGRADO_NO_INGRESANTE","POSGRADO_INGRESANTE","POSGRADO_NO_INGRESANTE"]
[null,"PREGRADO",null,null,"Estudios Generales de Letras","-","-","-"]
[null,"POSGRADO",null,null,"Estudios Generales de Ciencias"]
[null,null,null,null,"Educación "]
[null,null,null,null,"Arte y Diseño"]
[null,null,null,null,"Quimica, arquitectura y urbanismo"]
[null,null,null,null,"Artes Escenicas"]
[]
[null,"MODALIDAD"]
[null,"CUOTA DOBLE",5]
[null,"CUOTAS IGUALES",4]
[]
[null," INGRESANTE"]
[null,"SI"]
[null,"NO"]
[]
[null,"SEMESTRE"]
[null,"2022-1"]
[null,"2022-2"]
[null,"2024-0"]
[]
[null,"Escalas de los alumnos ciclo 2022-2"]
[]
[]
["ID","Etapa del alumno","Escala","Valor del crédito","D. de Matrícula (*)"]
[1,"Pregrado","G1",282.3,110.9]
[{"$f":"A28+1","v":2},"Pregrado","G2",362,139.80000000000001]
[{"$f":"A29+1","v":3},"Pregrado","G3",454.2,173.4]
[4,"Pregrado","G4",556.70000000000005,210.6]
[5,"Pregrado","G5",666.9,250.7]
[6,"Pregrado","G6",780.3,291.89999999999998]
[7,"Pregrado","G7",891.3,332.3]
[8,"Pregrado","G8",993.3,369.4]
[9,"Pregrado","G9",1078.9000000000001,400.6]
[10,"Pregrado",1,318.5,57]
[11,"Pregrado",2,417.8,72.5]
[12,"Pregrado",3,556.70000000000005,93.6]
[13,"Pregrado",4,740.6,121.3]
[14,"Pregrado",5,996.6,161.4]
[{"$f":"A41+1","v":15},"Posgrado","A",1042.3,168.2]
[{"$f":"A42+1","v":16},"Posgrado","B",784.9,128]
[{"$f":"A43+1","v":17},"Posgrado","C",600.1,100.4]
[]
[null,"Créditos 1era cuota académica"]
[]
[null,"Etapa del alumno","Etapa","Especialidad","Valor del crédito"]
[null,"Pregrado","Ingresante","Educación ",3.6]
[null,"Pregrado","Ingresante","Estudios Generales de Letras",3.8]
[null,"Pregrado","Ingresante","Estudios Generales de Ciencias",4]
[null,"Pregrado","Ingresante","Arte y Diseño",4.0999999999999996]
[null,"Pregrado","Ingresante","Quimica, arquitectura y urbanismo",4.4000000000000004]
[null,"Pregrado","Ingresante","Artes Escenicas",4.8]
[null,"Pregrado","Segundo semestre ",null,3.6]
[null,"Posgrado","Segundo semestre ",null,2]
[]
[]
[null,"Encargos de cobranza"]
[]
[null,"Encargo","Cobro en","Importe S/"]
[null,"Seguro contra accidentes","Cuota N° 2 y 3 (50% en cada cuota)",50]
[null,"Seguro de renta educacional","Cuota N° 2 y 3 (50% en cada cuota)",159]
[null,"Seguro oncológico nacional","Cuota N° 2 y 3 (50% en cada cuota)",60]
[null,"Seguro oncológico internacional","Cuota N° 2 y 3 (50% en cada cuota)",90]
[]
[null,"Fecha de vencimiento cuota académicas ciclo 2022-2"]
[]
[null,"Nro. De cuota","Fecha de vencimiento"]
[{"$f":"CONCATENATE(2022,-2,B70)","v":"2022-2Cuota N° 1"},"Cuota N° 1","2022-08-05"]
[{"$f":"CONCATENATE(2022,-2,B71)","v":"2022-2Cuota N° 2"},"Cuota N° 2","2022-09-15"]
["2022-2Cuota N° 3","Cuota N° 3","2022-10-14"]
["2022-2Cuota N° 4","Cuota N° 4","2022-11-15"]
["2022-2Cuota N° 5","Cuota N° 5","2022-12-15"]
[{"$f":"CONCATENATE(2022,-1,B75)","v":"2022-1Cuota N° 1"},"Cuota N° 1","2022-03-11"]
[{"$f":"CONCATENATE(2022,-1,B76)","v":"2022-1Cuota N° 2"},"Cuota N° 2","2022-04-18"]
["2022-1Cuota N° 3","Cuota N° 3","2022-05-16"]
["2022-1Cuota N° 4","Cuota N° 4","2022-06-15"]
["2022-1Cuota N° 5","Cuota N° 5","2022-07-15"]
[{"$f":"CONCATENATE(2023,\"-0\",B80)","v":"2023-0Cuota N° 1"},"Cuota N° 1","2023-01-05"]
[{"$f":"CONCATENATE(2023,\"-0\",B81)","v":"2023-0Cuota N° 2"},"Cuota N° 2","2023-02-14"]
[]
[]
[]
[]
[null,"Modalidad de cuota"]
[]
[null,"Modalidad","Forma de calculo"]
[null,"Cuotas iguales","A la cantidad de créditos matriculados se le descuenta los creditos pagados en la primera cuota académica, al resultado se le divide entre 4, de esta forma se obtiene el resultado del creditaje que se cobrará desde la 2da a la 5ta cuota"," Ten presente que en ciclo de Verano se cobra solo derecho académico, se emite únicamente 2 cuotas, se cobra en la primera cuota 2 cred. y no se cobra derecho de matricula."]
[null,"Cuota doble","A la cantidad de créditos matriculados se le descuenta los creditos pagados en la primera cuota académica, al resultado se le divide entre 5, de esta forma se obtiene el resultado del creditaje que se cobrará desde la 2da a la 4ta cuota. La 5ta cuota académica es el doble del importe de las anteriores "]

{"sheet":"Simulación","index":1,"n_rows":42,"n_cols":7,"rows_kept":42,"cut":false,"hidden":false,"merged":[[53,1,53,6],[5,1,8,7],[36,1,36,7],[37,1,37,6],[0,1,2,7],[31,1,31,7],[38,1,38,7],[15,1,15,7],[25,1,25,7]]}
[null,"SIMULADOR DE CUOTAS ACADÉMICAS"]
[]
[]
[]
[null,"Estimado Alumno:"]
[null,"Mediante este aplicativo podrá simular el importe de sus cuotas académicas, de acuerdo a la cantidad de créditos en los que desea matricularse y la escala de pensiones asignada."]
[]
[]
[]
[]
[null,"Ingrese los siguientes datos:"]
[]
[null,"Ciclo","2024-0",null,null,"Etapa","PREGRADO"]
[]
[]
[null,"CREDITOS MATRICULADOS Y ESCALA DE PENSIONES"]
[]
[null,"Escala de pensiones:",null,null,null,"Créditos:"]
[]
[null,null,null,null,false]
[null,null,null,null,null,"Valor del crédito",{"$f":"IF(C18=\"\",\"\",VLOOKUP(C18,Tabla8[[Escala]:[D. de Matrícula (*)]],2,FALSE))","v":""}]
[null,null,null,null,false]
[]
[null,null,null,null,false]
[]
[null,"CUOTAS ACADÉMICAS"]
[]
[null,null,"Cuota Académica","Fecha de vencimiento","Créditos","Derechos Académicos","Importe total S/"]
[null,null,"Cuota N° 1","2024-01-05"]
[null,null,"Cuota N° 2","2024-02-19"]
[null,null,null,null,null,"TOTAL S/"]
[null,"(*) De pagar tu cuota académica luego de la fecha de vencimiento, podrás ver el monto de intereses moratorios en los conceptos de pago que aparecerán en tu cuota en el Campus Virtual. Si deseas conocer más sobre el cálculo de los intereses moratorios, revisa este enlace."]
[]
[null,"IMPORTANTE:"]
[null,"Si usted se matricula en menos créditos a los pagados en su Cuota N° 1, se le realizará una devolución por el pago en exceso en las fechas publicadas por la Universidad."]
[]
[null,"(1)Para estudiar en el ciclo de Verano 2024-0, se debe cancelar la cuota N° 1 del 2024-0 y la cuota N° 4 del 2023-2.\nNo hay desdoblamiento de cuotas académicas\nEn caso no cancele su cuota N° 2 del 2023-0, la deuda de la misma será considerada en la cuota N° 1 del 2023-1."]
[null,"(2) Para mayor información dirígase al siguiente enlace: https://estudiante.pucp.edu.pe/informacion-economica/escala-derechos-academicos-y-valor-del-credito/"]
[null,"(3) No incluye las escalas de ciclos especiales (Programa de Segunda Especialidad de Psicología, Maestría en Gerencia Social, Maestría en Política y Gestión Universitaria, Doctorado en Derecho, Doctorados y Gastronomía) ni alumnos con la Beca LUCET."]
[]
[]
[null,null,null,"1<"]